[Event "FIDE World School-ch O-9 2025"]
[Site "Vrnjacka Banja"]
[Date "2025.03.22"]
[Round "4.3"]
[White "Bondarev, Fedor"]
[Black "Agar, Garig"]
[Result "0-1"]
[Annotator "NA RC"]
[ECO "C78"]
[WhiteElo "1598"]
[BlackElo "1620"]
[PlyCount "146"]
[EventDate "2025.03.19"]
[EventType "swiss"]
[EventCountry "SRB"]
[SourceTitle "playchess.com"]
[Source "ChessBase"]
[SourceQuality "1"]
[TimeControl "5400+30"]

1. e4 {[%emt 0:00:06]} e5 {[%emt 0:01:16]} 2. Nf3 {[%emt 0:00:24]} Nc6 {[%emt 0:01:19]} 3. Bb5 {[%emt 0:00:13]} a6 {[%emt 0:00:25]} 4. Ba4 {[%emt 0:00:14]} Nf6 {[%emt 0:00:15]} 5. d3 {[%emt 0:01:25]} b5 {[%emt 0:00:10]} 6. Bb3 {[%emt 0:00:08]} Bc5 {[%emt 0:00:05]} 7. O-O {[%emt 0:01:14]} d6 {[%emt 0:00:13]} 8. h3 {[%emt 0:00:10]} h6 {[%emt 0:00:56]} 9. c3 {[%emt 0:00:08]} Bb6 {[%emt 0:01:15]} 10. a4 {[%emt 0:00:46]} Bb7 {[%emt 0:01:51]} 11. Re1 {[%emt 0:01:28]} O-O {[%emt 0:01:15]} 12. Na3 {[%emt 0:01:12]} Na5 {[%emt 0:03:06]} 13. Bc2 {[%emt 0:01:37]} Qd7 {[%emt 0:05:42]} 14. b4 {[%emt 0:00:20]} Nc6 {[%emt 0:00:06]} 15. Be3 {[%emt 0:01:09]} Bxe3 {[%emt 0:04:20]} 16. fxe3 {[%emt 0:00:15]} Na7 {[%emt 0:00:52]} 17. Nb1 {[%emt 0:02:18]} Nc8 {[%emt 0:01:50]} 18. Nbd2 {[%emt 0:01:24]} Nb6 {[%emt 0:01:56]} 19. a5 {[%emt 0:01:36]} Nc8 {[%emt 0:00:23]} 20. Qe2 {[%emt 0:03:56]} Re8 {[%emt 0:01:53]} 21. c4 {[%emt 0:03:53]} Na7 {[%emt 0:02:34]} 22. Qf2 {[%emt 0:05:29]} bxc4 {[%emt 0:04:48]} 23. dxc4 {[%emt 0:04:02]} Rab8 {[%emt 0:01:44]} 24. Rab1 {[%emt 0:03:27]} Bc6 {[%emt 0:02:36]} 25. Bd3 {[%emt 0:05:31]} Qc8 {[%emt 0:04:51]} 26. Qh4 {[%emt 0:04:58]} Bd7 {[%emt 0:02:37]} 27. c5 {[%emt 0:16:33]} Bb5 {[%emt 0:13:19]} 28. Nc4 {[%emt 0:00:50]} d5 {[%emt 0:01:48]} 29. Ncxe5 {[%emt 0:06:25]} Bxd3 {[%emt 0:00:11]} 30. Nxd3 {[%emt 0:00:04]} dxe4 {[%emt 0:00:12]} 31. Nf4 {[%emt 0:01:15]} exf3 {[%emt 0:00:11]} 32. gxf3 {[%emt 0:00:06]} Nb5 {[%emt 0:01:16]} 33. Kh2 {[%emt 0:00:30]} Qf5 {[%emt 0:04:55]} 34. Rb2 {[%emt 0:01:59]} Nd4 {[%emt 0:08:30]} 35. Qg3 {[%emt 0:01:25]} Ne6 {[%emt 0:01:08]} 36. Rg2 {[%emt 0:00:17]} g5 {[%emt 0:01:48]} 37. Nxe6 {[%emt 0:00:42]} Rxe6 {[%emt 0:00:37]} 38. e4 {[%emt 0:00:07]} Qg6 {[%emt 0:00:49]} 39. Qxc7 {[%emt 0:02:55]} Rxb4 {[%emt 0:00:20]} 40. Rc1 {[%emt 0:02:30]} Ne8 {[%emt 0:04:31]} 41. Qc8 {[%emt 0:00:54]} Qf6 {[%emt 0:00:40]} 42. Rd1 {[%emt 0:01:20]} Qf4+ {[%emt 0:00:39]} 43. Kg1 {[%emt 0:00:41]} Qxf3 {[%emt 0:00:39]} 44. Rf1 {[%emt 0:00:12]} Qe3+ {[%emt 0:00:22]} 45. Kh2 {[%emt 0:00:04]} Qxe4 {[%emt 0:01:50]} 46. Rgf2 {[%emt 0:00:25]} Qe5+ {[%emt 0:00:40]} 47. Kh1 {[%emt 0:00:11]} Rb3 {[%emt 0:00:48]} 48. Rf3 {[%emt 0:00:27]} Rxf3 {[%emt 0:00:55]} 49. Rxf3 {[%emt 0:00:04]} Qd5 {[%emt 0:00:26]} 50. Kg2 {[%emt 0:00:07]} Re2+ {[%emt 0:00:09]} 51. Kg3 {[%emt 0:00:06]} Qe5+ {[%emt 0:00:06]} 52. Kg4 {[%emt 0:00:05]} Qe6+ {[%emt 0:01:00]} 53. Qxe6 {[%emt 0:00:06]} Rxe6 {[%emt 0:00:09]} 54. Rc3 {[%emt 0:00:09]} Rc6 {[%emt 0:00:06]} 55. Kf5 {[%emt 0:00:05]} Kf8 {[%emt 0:01:09]} 56. Ke5 {[%emt 0:00:13]} Ke7 {[%emt 0:00:34]} 57. Kd4 {[%emt 0:00:16]} Nc7 {[%emt 0:00:23]} 58. Ke5 {[%emt 0:00:16]} Ne6 {[%emt 0:00:46]} 59. Kd5 {[%emt 0:00:08]} Rxc5+ {[%emt 0:00:16]} 60. Rxc5 {[%emt 0:00:06]} Nxc5 {[%emt 0:00:08]} 61. Kxc5 {[%emt 0:00:05]} f5 {[%emt 0:00:12]} 62. Kb6 {[%emt 0:00:05]} f4 {[%emt 0:00:10]} 63. Kxa6 {[%emt 0:00:09]} f3 {[%emt 0:00:05]} 64. Kb7 {[%emt 0:00:06]} f2 {[%emt 0:00:13]} 65. a6 {[%emt 0:00:04]} f1=Q {[%emt 0:00:09]} 66. a7 {[%emt 0:00:05]} Qb5+ {[%emt 0:00:20]} 67. Kc8 {[%emt 0:00:13]} Qc6+ {[%emt 0:00:07]} 68. Kb8 {[%emt 0:00:04]} Qb6+ {[%emt 0:00:10]} 69. Kc8 {[%emt 0:00:06]} Qxa7 {[%emt 0:23:56]} 70. h4 {[%emt 0:00:06]} Qd7+ {[%emt 0:00:00]} 71. Kb8 {[%emt 0:00:06]} Kd6 {[%emt 0:00:00]} 72. hxg5 {[%emt 0:00:42]} Kc6 {[%emt 0:00:00]} 73. gxh6 {[%emt 0:00:05]} Qb7# {[%emt 0:00:00]} 0-1

[Event "FIDE World School-ch O-9 2025"]
[Site "Vrnjacka Banja"]
[Date "2025.03.26"]
[Round "7.1"]
[White "Batbileg, Boldbaatar"]
[Black "Agar, Garig"]
[Result "1-0"]
[Annotator "NA RC"]
[ECO "A44"]
[WhiteElo "1637"]
[BlackElo "1620"]
[PlyCount "65"]
[EventDate "2025.03.19"]
[EventType "swiss"]
[EventCountry "SRB"]
[SourceTitle "playchess.com"]
[Source "ChessBase"]
[SourceQuality "1"]
[TimeControl "5400+30"]

1. d4 {[%emt 0:02:22]} c5 {[%emt 0:04:50]} 2. d5 {[%emt 0:02:22]} e5 {[%emt 0:00:08]} 3. e4 {[%emt 0:03:34]} d6 {[%emt 0:00:25]} 4. c4 {[%emt 0:01:47]} f5 {[%emt 0:00:10]} 5. Nc3 {[%emt 0:01:18]} Nf6 {[%emt 0:01:01]} 6. Bd3 {[%emt 0:00:23]} g6 {[%emt 0:02:57]} 7. Nf3 {[%emt 0:00:24]} Bg7 {[%emt 0:00:36]} 8. O-O {[%emt 0:00:31]} O-O {[%emt 0:00:30]} 9. a3 {[%emt 0:03:23]} a5 {[%emt 0:02:59]} 10. Rb1 {[%emt 0:05:22]} fxe4 {[%emt 0:03:49]} 11. Nxe4 {[%emt 0:00:22]} Bg4 {[%emt 0:00:24]} 12. Bg5 {[%emt 0:09:53]} Qc7 {[%emt 0:08:21]} 13. Bxf6 {[%emt 0:09:03]} Bxf6 {[%emt 0:00:17]} 14. h3 {[%emt 0:00:12]} Bd7 {[%emt 0:01:59]} 15. b4 {[%emt 0:04:32]} axb4 {[%emt 0:15:43]} 16. axb4 {[%emt 0:00:17]} Ba4 {[%emt 0:00:41]} 17. Qd2 {[%emt 0:01:45]} Na6 {[%emt 0:07:01]} 18. bxc5 {[%emt 0:12:25]} Nxc5 {[%emt 0:03:08]} 19. Nxc5 {[%emt 0:00:48]} dxc5 {[%emt 0:00:09]} 20. Be4 {[%emt 0:00:41]} Rfd8 {[%emt 0:00:44]} 21. Qb2 {[%emt 0:00:46]} Rab8 {[%emt 0:04:14]} 22. Qb6 {[%emt 0:01:33]} Qd6 {[%emt 0:00:31]} 23. Rb2 {[%emt 0:00:42]} Ra8 {[%emt 0:01:50]} 24. Rfb1 {[%emt 0:04:47]} Be8 {[%emt 0:02:49]} 25. Qxb7 {[%emt 0:02:51]} Rdb8 {[%emt 0:01:05]} 26. Qxb8 {[%emt 0:00:46]} Rxb8 {[%emt 0:00:18]} 27. Rxb8 {[%emt 0:00:12]} Qd7 {[%emt 0:08:09]} 28. R1b7 {[%emt 0:01:37]} Qa4 {[%emt 0:01:51]} 29. d6 {[%emt 0:00:33]} Qd1+ {[%emt 0:06:22]} 30. Kh2 {[%emt 0:00:15]} Qxd6 {[%emt 0:00:19]} 31. Rxe8+ {[%emt 0:00:10]} Qf8 {[%emt 0:00:04]} 32. Bd5+ {[%emt 0:00:13]} Kh8 {[%emt 0:02:51]} 33. Rxf8# {[%emt 0:00:10]} 1-0

[Event "FIDE World School-ch O-9 2025"]
[Site "Vrnjacka Banja"]
[Date "2025.03.26"]
[Round "7.2"]
[White "Sultankhan, Nurislam"]
[Black "Ulan, Rizat"]
[Result "1-0"]
[Annotator "NA RC"]
[ECO "A48"]
[WhiteElo "1649"]
[BlackElo "1769"]
[PlyCount "107"]
[EventDate "2025.03.19"]
[EventType "swiss"]
[EventCountry "SRB"]
[SourceTitle "playchess.com"]
[Source "ChessBase"]
[SourceQuality "1"]
[TimeControl "5400+30"]

1. d4 {[%emt 0:00:09]} Nf6 {[%emt 0:00:21]} 2. Bf4 {[%emt 0:00:37]} g6 {[%emt 0:00:10]} 3. e3 {[%emt 0:00:56]} Bg7 {[%emt 0:00:32]} 4. h3 {[%emt 0:01:06]} d6 {[%emt 0:00:44]} 5. Nf3 {[%emt 0:00:21]} O-O {[%emt 0:00:08]} 6. Be2 {[%emt 0:00:35]} Nbd7 {[%emt 0:01:20]} 7. O-O {[%emt 0:00:51]} c6 {[%emt 0:01:14]} 8. c4 {[%emt 0:01:48]} Ne4 {[%emt 0:16:46]} 9. Nbd2 {[%emt 0:04:45]} Nxd2 {[%emt 0:01:44]} 10. Qxd2 {[%emt 0:00:07]} e5 {[%emt 0:00:19]} 11. dxe5 {[%emt 0:08:22]} dxe5 {[%emt 0:00:12]} 12. Bh2 {[%emt 0:02:03]} e4 {[%emt 0:15:12]} 13. Nd4 {[%emt 0:07:08]} Ne5 {[%emt 0:07:48]} 14. Rfd1 {[%emt 0:05:01]} Nd3 {[%emt 0:08:09]} 15. Bxd3 {[%emt 0:20:28]} exd3 {[%emt 0:00:06]} 16. Nb3 {[%emt 0:05:54]} Be6 {[%emt 0:09:09]} 17. Rac1 {[%emt 0:04:14]} b6 {[%emt 0:01:41]} 18. c5 {[%emt 0:06:29]} b5 {[%emt 0:04:45]} 19. Bd6 {[%emt 0:01:39]} Re8 {[%emt 0:00:19]} 20. Nd4 {[%emt 0:06:45]} Bd5 {[%emt 0:00:06]} 21. Qxd3 {[%emt 0:01:11]} Qg5 {[%emt 0:01:05]} 22. Qf1 {[%emt 0:01:26]} Rad8 {[%emt 0:09:28]} 23. Bf4 {[%emt 0:01:08]} Qf6 {[%emt 0:00:16]} 24. b3 {[%emt 0:00:34]} g5 {[%emt 0:00:25]} 25. Bd6 {[%emt 0:00:44]} h5 {[%emt 0:00:31]} 26. Nxb5 {[%emt 0:01:29]} Bxg2 {[%emt 0:07:52]} 27. Qxg2 {[%emt 0:03:01]} cxb5 {[%emt 0:00:06]} 28. Bg3 {[%emt 0:00:44]} Rc8 {[%emt 0:03:24]} 29. c6 {[%emt 0:01:24]} h4 {[%emt 0:03:15]} 30. Bh2 {[%emt 0:00:58]} Qb2 {[%emt 0:03:26]} 31. c7 {[%emt 0:01:55]} Qxa2 {[%emt 0:01:04]} 32. Qxg5 {[%emt 0:03:27]} Qxb3 {[%emt 0:01:48]} 33. Rd8 {[%emt 0:00:38]} Qe6 {[%emt 0:00:16]} 34. Rcd1 {[%emt 0:02:31]} Qf6 {[%emt 0:02:01]} 35. Rxe8+ {[%emt 0:02:59]} Rxe8 {[%emt 0:00:06]} 36. Qxb5 {[%emt 0:00:30]} Qg6+ {[%emt 0:00:22]} 37. Kf1 {[%emt 0:00:24]} Rf8 {[%emt 0:00:33]} 38. Rd8 {[%emt 0:01:10]} Qe6 {[%emt 0:00:50]} 39. Rxf8+ {[%emt 0:01:12]} Bxf8 {[%emt 0:00:06]} 40. Qg5+ {[%emt 0:00:33]} Kh7 {[%emt 0:00:05]} 41. Qxh4+ {[%emt 0:00:14]} Bh6 {[%emt 0:03:16]} 42. Bf4 {[%emt 0:00:27]} Qc4+ {[%emt 0:00:00]} 43. Kg1 {[%emt 0:00:16]} Kg8 {[%emt 0:00:00]} 44. Qxh6 {[%emt 0:00:17]} Qc1+ {[%emt 0:00:00]} 45. Kg2 {[%emt 0:00:24]} Qc2 {[%emt 0:00:03]} 46. Qg5+ {[%emt 0:00:13]} Kh7 {[%emt 0:00:05]} 47. Qh4+ {[%emt 0:00:23]} Kg7 {[%emt 0:00:11]} 48. Qg4+ {[%emt 0:00:09]} Kh7 {[%emt 0:00:07]} 49. c8=Q {[%emt 0:00:11]} Qe4+ {[%emt 0:00:06]} 50. Kg3 {[%emt 0:00:11]} Qg6 {[%emt 0:00:25]} 51. Qxg6+ {[%emt 0:00:17]} fxg6 {[%emt 0:00:06]} 52. Bh6 {[%emt 0:00:35]} g5 {[%emt 0:00:06]} 53. Qf8 {[%emt 0:00:11]} Kg6 {[%emt 0:00:05]} 54. Kg4 {[%emt 0:00:09]} 1-0

[Event "FIDE World School-ch O-9 2025"]
[Site "Vrnjacka Banja"]
[Date "2025.03.26"]
[Round "7.3"]
[White "Nematillakhonov, Nurmuhammad"]
[Black "Lau, Great Boyou"]
[Result "1-0"]
[Annotator "NA RC"]
[ECO "E68"]
[WhiteElo "1767"]
[BlackElo "1593"]
[PlyCount "129"]
[EventDate "2025.03.19"]
[EventType "swiss"]
[EventCountry "SRB"]
[SourceTitle "playchess.com"]
[Source "ChessBase"]
[SourceQuality "1"]
[TimeControl "5400+30"]

1. d4 {[%emt 0:00:04]} Nf6 {[%emt 0:00:20]} 2. c4 {[%emt 0:00:02]} g6 {[%emt 0:00:06]} 3. g3 {[%emt 0:00:08]} Bg7 {[%emt 0:00:04]} 4. Bg2 {[%emt 0:00:08]} O-O {[%emt 0:00:10]} 5. Nc3 {[%emt 0:00:02]} d6 {[%emt 0:00:14]} 6. Nf3 {[%emt 0:00:07]} Nbd7 {[%emt 0:00:06]} 7. O-O {[%emt 0:00:13]} e5 {[%emt 0:00:05]} 8. e4 {[%emt 0:00:07]} Re8 {[%emt 0:00:04]} 9. Re1 {[%emt 0:00:10]} exd4 {[%emt 0:00:08]} 10. Nxd4 {[%emt 0:00:12]} Nc5 {[%emt 0:00:15]} 11. b3 {[%emt 0:03:13]} a5 {[%emt 0:00:13]} 12. Rb1 {[%emt 0:02:56]} Ng4 {[%emt 0:09:58]} 13. Rb2 {[%emt 0:04:56]} Ne5 {[%emt 0:14:11]} 14. Rd2 {[%emt 0:00:08]} Ne6 {[%emt 0:03:31]} 15. Nxe6 {[%emt 0:01:37]} Bxe6 {[%emt 0:01:01]} 16. Bb2 {[%emt 0:02:41]} Qd7 {[%emt 0:04:46]} 17. f4 {[%emt 0:01:56]} Bg4 {[%emt 0:03:30]} 18. Qa1 {[%emt 0:00:51]} Nf3+ {[%emt 0:07:32]} 19. Bxf3 {[%emt 0:00:26]} Bxf3 {[%emt 0:00:05]} 20. Nd5 {[%emt 0:00:25]} f6 {[%emt 0:09:57]} 21. Qb1 {[%emt 0:06:22]} f5 {[%emt 0:14:16]} 22. e5 {[%emt 0:04:00]} Bxd5 {[%emt 0:09:06]} 23. cxd5 {[%emt 0:00:38]} dxe5 {[%emt 0:00:59]} 24. fxe5 {[%emt 0:02:11]} Rad8 {[%emt 0:03:23]} 25. Qd3 {[%emt 0:16:13]} Qe7 {[%emt 0:02:26]} 26. Qc4 {[%emt 0:04:07]} Qf7 {[%emt 0:06:47]} 27. Ree2 {[%emt 0:01:44]} Bh6 {[%emt 0:03:19]} 28. e6 {[%emt 0:08:36]} Qe7 {[%emt 0:00:17]} 29. Rc2 {[%emt 0:00:26]} c6 {[%emt 0:03:09]} 30. Qd4 {[%emt 0:01:40]} Bg7 {[%emt 0:00:41]} 31. Qxg7+ Qxg7 32. Bxg7 {[%emt 0:00:22]} Kxg7 {[%emt 0:00:09]} 33. dxc6 {[%emt 0:00:14]} bxc6 {[%emt 0:00:29]} 34. Rxc6 {[%emt 0:00:06]} Re7 {[%emt 0:00:46]} 35. Re5 {[%emt 0:03:40]} Rd1+ {[%emt 0:00:18]} 36. Kf2 {[%emt 0:01:22]} Rd2+ {[%emt 0:00:08]} 37. Re2 {[%emt 0:00:55]} Rxe2+ {[%emt 0:00:49]} 38. Kxe2 {[%emt 0:00:02]} Kf6 {[%emt 0:00:34]} 39. Kd3 {[%emt 0:05:33]} Rxe6 {[%emt 0:02:29]} 40. Rxe6+ {[%emt 0:00:06]} Kxe6 {[%emt 0:00:04]} 41. Kc4 {[%emt 0:00:10]} g5 {[%emt 0:01:06]} 42. Kd4 {[%emt 0:00:39]} Kd6 {[%emt 0:00:10]} 43. a3 {[%emt 0:00:24]} Ke6 {[%emt 0:00:35]} 44. b4 {[%emt 0:01:33]} axb4 {[%emt 0:01:25]} 45. axb4 {[%emt 0:00:08]} Kd6 {[%emt 0:00:07]} 46. b5 {[%emt 0:00:18]} h6 {[%emt 0:02:46]} 47. b6 {[%emt 0:01:08]} Kc6 {[%emt 0:00:41]} 48. Ke5 {[%emt 0:00:09]} f4 {[%emt 0:00:34]} 49. gxf4 {[%emt 0:00:11]} gxf4 {[%emt 0:00:33]} 50. Kxf4 {[%emt 0:00:18]} Kxb6 {[%emt 0:00:05]} 51. Kf5 {[%emt 0:00:19]} Kc5 {[%emt 0:00:38]} 52. Kg6 {[%emt 0:00:16]} Kd4 {[%emt 0:00:44]} 53. Kxh6 {[%emt 0:00:09]} Ke4 {[%emt 0:00:32]} 54. Kg6 {[%emt 0:00:08]} Kf4 {[%emt 0:00:23]} 55. h4 {[%emt 0:01:48]} Kg4 {[%emt 0:00:06]} 56. h5 {[%emt 0:00:09]} Kf4 {[%emt 0:00:04]} 57. h6 {[%emt 0:00:04]} Ke5 {[%emt 0:00:06]} 58. h7 {[%emt 0:00:07]} Ke6 {[%emt 0:00:07]} 59. h8=Q {[%emt 0:00:13]} Ke7 {[%emt 0:00:07]} 60. Qd4 {[%emt 0:00:22]} Ke6 {[%emt 0:00:06]} 61. Kg5 {[%emt 0:00:21]} Ke7 {[%emt 0:00:09]} 62. Kf5 {[%emt 0:00:08]} Kf7 {[%emt 0:00:37]} 63. Qd7+ {[%emt 0:00:09]} Kg8 {[%emt 0:00:08]} 64. Kf6 {[%emt 0:00:08]} Kh8 {[%emt 0:00:08]} 65. Qg7# {[%emt 0:00:09]} 1-0

[Event "FIDE World School-ch O-9 2025"]
[Site "Vrnjacka Banja"]
[Date "2025.03.26"]
[Round "7.4"]
[White "Zhanabayev, Arystan"]
[Black "Wee, Yu Heng Lucas John"]
[Result "0-1"]
[Annotator "NA RC"]
[ECO "B33"]
[WhiteElo "1507"]
[BlackElo "1680"]
[PlyCount "98"]
[EventDate "2025.03.19"]
[EventType "swiss"]
[EventCountry "SRB"]
[SourceTitle "playchess.com"]
[Source "ChessBase"]
[SourceQuality "1"]
[TimeControl "5400+30"]

1. e4 {[%emt 0:00:49]} c5 {[%emt 0:00:06]} 2. Nf3 {[%emt 0:00:19]} Nc6 {[%emt 0:00:17]} 3. d4 {[%emt 0:00:05]} cxd4 {[%emt 0:00:08]} 4. Nxd4 {[%emt 0:00:05]} Nf6 {[%emt 0:00:05]} 5. Nc3 {[%emt 0:00:07]} e5 {[%emt 0:00:22]} 6. Ndb5 {[%emt 0:00:10]} d6 {[%emt 0:00:05]} 7. Bg5 {[%emt 0:00:08]} a6 {[%emt 0:00:09]} 8. Na3 {[%emt 0:00:27]} b5 {[%emt 0:00:10]} 9. Nd5 {[%emt 0:00:08]} Be7 {[%emt 0:00:24]} 10. Bxf6 {[%emt 0:00:41]} Bxf6 {[%emt 0:00:11]} 11. c3 {[%emt 0:00:05]} O-O {[%emt 0:04:47]} 12. Nc2 {[%emt 0:02:46]} Be6 {[%emt 0:06:27]} 13. Nxf6+ {[%emt 0:05:09]} Qxf6 {[%emt 0:00:25]} 14. Qxd6 {[%emt 0:03:45]} Rac8 {[%emt 0:05:12]} 15. Qd3 {[%emt 0:19:36]} Rfd8 {[%emt 0:04:57]} 16. Qg3 {[%emt 0:04:17]} b4 {[%emt 0:16:28]} 17. Bxa6 {[%emt 0:16:01]} Rb8 {[%emt 0:28:34]} 18. O-O {[%emt 0:18:36]} Rd2 {[%emt 0:01:14]} 19. Nxb4 {[%emt 0:04:51]} Nxb4 {[%emt 0:03:02]} 20. cxb4 {[%emt 0:04:50]} Rxb4 {[%emt 0:01:05]} 21. b3 {[%emt 0:03:27]} Rxe4 {[%emt 0:00:52]} 22. Qc3 {[%emt 0:02:08]} Red4 {[%emt 0:01:40]} 23. Bb5 {[%emt 0:05:04]} g6 {[%emt 0:07:28]} 24. a4 {[%emt 0:01:12]} Bd5 {[%emt 0:01:03]} 25. Qg3 {[%emt 0:04:36]} Rf4 {[%emt 0:05:54]} 26. a5 {[%emt 0:02:19]} e4 {[%emt 0:00:45]} 27. Rad1 {[%emt 0:01:32]} e3 {[%emt 0:05:23]} 28. Qxe3 {[%emt 0:00:34]} Qg5 {[%emt 0:03:50]} 29. g3 {[%emt 0:00:38]} Rfxf2 {[%emt 0:02:49]} 30. Qxf2 {[%emt 0:00:27]} Rxf2 {[%emt 0:00:08]} 31. Rxf2 {[%emt 0:00:12]} Bxb3 {[%emt 0:00:13]} 32. Rb1 {[%emt 0:00:43]} Qxb5 {[%emt 0:00:14]} 33. a6 {[%emt 0:00:22]} Qd3 {[%emt 0:00:50]} 34. Ra1 {[%emt 0:00:31]} Qd4 {[%emt 0:01:08]} 35. Ra3 {[%emt 0:00:21]} Qd1+ {[%emt 0:00:16]} 36. Rf1 {[%emt 0:00:22]} Qd4+ {[%emt 0:00:21]} 37. Rf2 {[%emt 0:00:07]} Qb4 {[%emt 0:00:46]} 38. Ra1 {[%emt 0:00:31]} Qc3 {[%emt 0:00:52]} 39. Ra3 {[%emt 0:00:40]} Qc1+ {[%emt 0:00:09]} 40. Kg2 {[%emt 0:00:58]} Qxa3 {[%emt 0:00:11]} 41. Rf1 {[%emt 0:00:17]} Bd5+ {[%emt 0:00:04]} 42. Kh3 {[%emt 0:00:10]} Qxa6 {[%emt 0:00:15]} 43. Rd1 {[%emt 0:00:13]} Qe6+ {[%emt 0:00:08]} 44. g4 {[%emt 0:00:55]} Qe3+ {[%emt 0:00:25]} 45. Kh4 {[%emt 0:00:16]} g5+ {[%emt 0:00:19]} 46. Kh5 {[%emt 0:00:04]} f6 {[%emt 0:00:07]} 47. h4 {[%emt 0:00:21]} Bf7+ {[%emt 0:00:06]} 48. Kh6 {[%emt 0:00:13]} gxh4+ {[%emt 0:00:08]} 49. g5 {[%emt 0:00:03]} Qxg5# {[%emt 0:00:05]} 0-1

[Event "FIDE World School-ch O-9 2025"]
[Site "Vrnjacka Banja"]
[Date "2025.03.26"]
[Round "7.5"]
[White "Khabul, Chinzorig"]
[Black "Bondarev, Fedor"]
[Result "0-1"]
[Annotator "NA RC"]
[ECO "E35"]
[WhiteElo "1513"]
[BlackElo "1598"]
[PlyCount "132"]
[EventDate "2025.03.19"]
[EventType "swiss"]
[EventCountry "SRB"]
[SourceTitle "playchess.com"]
[Source "ChessBase"]
[SourceQuality "1"]
[TimeControl "5400+30"]

1. d4 {[%emt 0:01:38]} Nf6 {[%emt 0:00:52]} 2. c4 {[%emt 0:00:56]} e6 {[%emt 0:00:52]} 3. Nc3 {[%emt 0:01:13]} Bb4 {[%emt 0:00:16]} 4. Qc2 {[%emt 0:00:54]} d5 {[%emt 0:01:04]} 5. cxd5 {[%emt 0:02:32]} exd5 {[%emt 0:00:55]} 6. Bg5 {[%emt 0:00:40]} O-O {[%emt 0:00:29]} 7. e3 {[%emt 0:00:59]} h6 {[%emt 0:00:35]} 8. Bh4 {[%emt 0:00:27]} c6 {[%emt 0:01:26]} 9. Bd3 {[%emt 0:00:43]} Nbd7 {[%emt 0:00:57]} 10. Nge2 {[%emt 0:00:43]} Be7 {[%emt 0:05:11]} 11. Bg3 {[%emt 0:00:17]} a6 {[%emt 0:08:02]} 12. O-O {[%emt 0:01:21]} Nh5 {[%emt 0:01:01]} 13. Rfe1 {[%emt 0:01:21]} Nxg3 {[%emt 0:00:23]} 14. Nxg3 {[%emt 0:00:28]} Nf6 {[%emt 0:00:19]} 15. Rad1 {[%emt 0:01:42]} Be6 {[%emt 0:05:45]} 16. Bf1 {[%emt 0:01:49]} Rc8 {[%emt 0:01:15]} 17. e4 {[%emt 0:09:50]} dxe4 {[%emt 0:00:18]} 18. Ngxe4 {[%emt 0:00:18]} Nd5 {[%emt 0:01:52]} 19. a3 {[%emt 0:08:55]} Qc7 {[%emt 0:03:25]} 20. b4 {[%emt 0:07:24]} Rfd8 {[%emt 0:08:53]} 21. Nc5 {[%emt 0:02:17]} Bxc5 {[%emt 0:04:56]} 22. dxc5 {[%emt 0:01:36]} Nxc3 {[%emt 0:03:05]} 23. Qxc3 {[%emt 0:00:35]} Qf4 {[%emt 0:00:17]} 24. h3 {[%emt 0:01:34]} Qh4 {[%emt 0:05:52]} 25. Be2 {[%emt 0:13:45]} Qf6 {[%emt 0:06:24]} 26. Qxf6 {[%emt 0:01:01]} gxf6 {[%emt 0:00:16]} 27. Bf3 {[%emt 0:01:00]} Kg7 {[%emt 0:01:08]} 28. Kh2 {[%emt 0:03:29]} f5 {[%emt 0:38:42]} 29. Kg3 {[%emt 0:01:26]} Kf6 {[%emt 0:00:00]} 30. Kf4 {[%emt 0:00:27]} Bb3 {[%emt 0:00:00]} 31. Rb1 {[%emt 0:01:45]} Bc2 {[%emt 0:00:00]} 32. Rb2 {[%emt 0:00:46]} Rd4+ {[%emt 0:00:00]} 33. Kg3 {[%emt 0:03:39]} Rg8+ {[%emt 0:00:00]} 34. Kh2 {[%emt 0:30:00]} Be4 {[%emt 0:00:00]} 35. Bxe4 {[%emt 0:00:00]} fxe4 {[%emt 0:00:00]} 36. Re3 {[%emt 0:00:00]} Ke5 {[%emt 0:00:00]} 37. Rbe2 {[%emt 0:00:00]} f5 {[%emt 0:00:00]} 38. f3 {[%emt 0:00:00]} Rgd8 {[%emt 0:00:00]} 39. fxe4 {[%emt 0:00:00]} f4 {[%emt 0:00:00]} 40. Rb3 {[%emt 0:00:00]} Rd3 {[%emt 0:00:00]} 41. Reb2 {[%emt 0:00:00]} Kxe4 {[%emt 0:00:00]} 42. Re2+ {[%emt 0:00:00]} Re3 {[%emt 0:00:00]} 43. Reb2 {[%emt 0:00:00]} Rxb3 {[%emt 0:00:00]} 44. Rxb3 {[%emt 0:00:00]} Rd3 {[%emt 0:00:00]} 45. Rxd3 {[%emt 0:00:00]} Kxd3 {[%emt 0:00:00]} 46. g3 {[%emt 0:00:00]} Ke3 {[%emt 0:00:00]} 47. gxf4 {[%emt 0:00:00]} Kxf4 {[%emt 0:00:00]} 48. Kg2 {[%emt 0:00:00]} h5 {[%emt 0:00:00]} 49. a4 {[%emt 0:00:00]} h4 {[%emt 0:00:00]} 50. Kf2 {[%emt 0:00:00]} Ke4 {[%emt 0:00:00]} 51. Ke2 {[%emt 0:00:00]} Kd4 {[%emt 0:00:00]} 52. Kf3 {[%emt 0:00:00]} a5 {[%emt 0:00:15]} 53. bxa5 {[%emt 0:00:00]} Kxc5 {[%emt 0:00:07]} 54. Kg4 {[%emt 0:00:00]} Kd4 {[%emt 0:12:38]} 55. Kxh4 {[%emt 0:00:00]} c5 {[%emt 0:00:00]} 56. Kg4 {[%emt 0:00:00]} c4 {[%emt 0:00:00]} 57. Kf3 {[%emt 0:00:00]} Kd3 {[%emt 0:00:00]} 58. h4 {[%emt 0:00:00]} c3 {[%emt 0:00:00]} 59. h5 {[%emt 0:00:00]} c2 {[%emt 0:00:00]} 60. h6 {[%emt 0:00:00]} c1=Q {[%emt 0:00:00]} 61. h7 {[%emt 0:00:00]} Qh1+ {[%emt 0:00:00]} 62. Kg3 {[%emt 0:14:00]} Qxh7 {[%emt 0:00:00]} 63. a6 {[%emt 0:00:00]} Ke3 {[%emt 0:00:00]} 64. a7 {[%emt 0:00:00]} Qg8+ {[%emt 0:00:00]} 65. Kh2 {[%emt 0:00:00]} Kf2 {[%emt 0:00:00]} 66. a8=Q {[%emt 0:00:00]} Qg2# {[%emt 0:00:00]} 0-1